bitfinex/quotes_SOLUSD_20241118
["timestamp","ask_amount","ask_price","bid_price","bid_amount"]
[1731908314109,15.48810047,243.77,243.69,14.3624]
[1731908314297,24.027864,243.76,243.69,14.3624]
[1731908317508,15.48810047,243.79,243.7,15.48810047]
[1731908317706,24.027864,243.78,243.7,15.48810047]
[1731908318207,24.027864,243.78,243.69,14.3624]
[1731908318398,24.027864,243.78,243.7,9.69807119]
[1731908318605,24.027864,243.79,243.7,9.69807119]
[1731908319300,24.027864,243.79,243.71,14.3612]
[1731908320698,184.227864,243.79,243.71,14.3612]
[1731908323715,0.09367462,243.81,243.73,9.69807119]
[1731908323914,160.2,243.81,243.75,9.69807119]
[1731908324804,160.2,243.81,243.77,9.69807119]
[1731908325692,160.2,243.91,243.8,14.356]
[1731908326010,160.2,243.9,243.84,9.69807119]
[1731908327103,160.2,243.92,243.84,9.69807119]
[1731908327415,160.2,243.92,243.85,14.353]
[1731908327601,160.2,243.91,243.85,14.353]
[1731908328198,0.12549,243.9,243.85,14.353]
[1731908329115,0.12549,243.9,243.82,9.69807119]
[1731908330399,0.12549,243.9,243.83,14.3542]
[1731908332716,160.2,243.91,243.83,14.3542]
[1731908332717,24.027864,243.91,243.83,14.3542]
[1731908335511,33.72593519,243.91,243.83,14.3542]
[1731908338824,24.027864,243.91,243.83,14.3542]
[1731908339007,0.25098,243.91,243.83,14.3542]
[1731908340621,9.94905119,243.91,243.83,14.3542]
[1731908341424,9.69807119,243.89,243.83,14.3542]
[1731908341824,9.94905119,243.91,243.83,10.253]
[1731908342820,9.94905119,243.91,243.83,14.3542]
[1731908343935,9.69807119,243.93,243.84,9.69807119]
[1731908345708,160.2,243.95,243.88,9.69807119]
[1731908345926,160.2,243.95,243.9,9.69807119]
[1731908346106,0.25098,243.97,243.9,9.69807119]
[1731908346729,160.2,243.97,243.88,9.69807119]
[1731908346922,160.2,244.06,243.96,9.69807119]
[1731908347109,21.8766,244.12,243.96,9.69807119]
[1731908347110,169.89807119,244.11,244.02,9.69807119]
[1731908347309,160.2,244.1,244.02,9.69807119]
[1731908347836,160.2,244.1,244.03,14.3424]
[1731908349018,9.69807119,244.07,244.01,4.0981]
[1731908349411,24.027864,244.06,244.01,4.0981]
[1731908349612,184.227864,244.06,244.01,4.0981]
[1731908350216,184.227864,244.06,243.98,34.8385]
[1731908350741,24.027864,244.0,243.91,15.79657119]
[1731908350923,24.027864,243.98,243.93,4.0993]
[1731908351730,30.0,243.96,243.93,4.0993]
[1731908353921,30.0,243.96,243.87,9.69807119]
[1731908355325,30.0,243.96,243.88,14.3512]
[1731908355714,0.12549,243.91,243.88,10.2509]
[1731908356037,54.027864,243.91,243.88,10.2509]
[1731908358139,24.027864,243.91,243.88,10.2509]
[1731908359721,24.027864,243.91,243.84,4.101]
[1731908360527,24.027864,243.91,243.84,14.3536]
[1731908360716,160.2,243.92,243.88,9.69807119]
[1731908361819,160.2,243.92,243.89,14.3507]
[1731908364614,160.2,243.92,243.89,10.2505]
[1731908365815,0.25098,243.93,243.89,10.2505]
[1731908368930,160.2,243.92,243.89,10.2505]
[1731908371821,160.2,243.92,243.87,9.69807119]
[1731908372154,160.2,243.92,243.91,9.69807119]
[1731908372324,160.2,243.92,243.87,9.69807119]
[1731908373439,160.2,243.92,243.89,9.69807119]
[1731908373825,160.2,243.92,243.9,14.3501]
[1731908374746,0.12549,243.96,243.9,14.3501]
[1731908374945,160.2,243.95,243.9,14.3501]
[1731908375843,160.2,243.95,243.9,10.2501]
[1731908376033,0.12549,243.94,243.9,10.2501]
[1731908376344,0.25098,243.94,243.9,10.2501]
[1731908376541,24.027864,243.94,243.9,10.2501]
[1731908376723,0.12549,243.94,243.9,10.2501]
[1731908376930,0.09367462,243.97,243.9,10.2501]
[1731908376931,160.2,243.93,243.9,10.2501]
[1731908378744,0.25098,243.96,243.9,14.3501]
[1731908379245,0.25098,243.96,243.91,6.19764808]
[1731908379453,0.12549,243.98,243.91,6.19764808]
[1731908380549,0.12549,243.98,243.92,14.3489]
[1731908381534,0.09367462,243.97,243.92,14.3489]
[1731908381844,0.12549,243.96,243.92,14.3489]
[1731908382736,0.12549,243.96,243.92,10.2492]
[1731908386346,0.09367462,243.95,243.9,4.1]
[1731908386552,0.21916462,243.95,243.9,4.1]
[1731908386732,0.12549,243.92,243.9,4.1]
[1731908386932,0.25098,243.92,243.9,4.1]
[1731908387431,0.25098,243.92,243.88,4.1002]
[1731908388052,0.25098,243.92,243.88,14.3511]
[1731908389731,0.34465462,243.91,243.83,16.45024808]
[1731908389938,0.34465462,243.89,243.83,16.45024808]
[1731908390145,0.34465462,243.89,243.83,10.2526]
[1731908390327,0.34465462,243.89,243.83,16.45024808]
[1731908391449,0.34465462,243.89,243.83,10.2526]
[1731908391657,6.19764808,243.86,243.77,10.2552]
[1731908391831,0.09367462,243.87,243.77,10.2552]
[1731908391832,0.34465462,243.81,243.77,10.2552]
[1731908392036,24.12153862,243.81,243.77,10.2552]
[1731908394634,0.09367462,243.79,243.77,10.2552]
[1731908394846,23.99604862,243.79,243.77,10.2552]
[1731908395039,0.21916462,243.75,243.74,4.1027]
[1731908395238,0.34465462,243.75,243.74,4.1027]
[1731908395632,23.776884,243.77,243.74,4.1027]
[1731908397031,23.776884,243.77,243.74,14.3595]
[1731908397225,160.2,243.78,243.74,14.3595]
[1731908398750,24.12153862,243.81,243.74,14.3595]
[1731908400241,160.2,243.83,243.75,6.19764808]
[1731908400553,160.2,243.87,243.79,6.19764808]
[1731908400733,160.2,243.86,243.79,6.19764808]
[1731908400929,0.09367462,243.8,243.74,14.3595]
[1731908401339,160.2,243.84,243.74,20.55714808]
[1731908401545,160.2,243.84,243.76,6.19764808]
[1731908401746,23.902374,243.83,243.76,6.19764808]
[1731908402341,23.902374,243.81,243.75,20.0]
[1731908402742,23.902374,243.81,243.74,10.2568]
[1731908402939,6.2913227,243.82,243.74,10.2568]
[1731908402940,24.12153862,243.79,243.74,10.2568]
[1731908403335,6.19764808,243.78,243.74,10.2568]
[1731908403540,24.12153862,243.79,243.61,15.1201]
[1731908403541,0.09367462,243.75,243.61,15.1201]
[1731908403732,0.34465462,243.71,243.63,6.19764808]
[1731908404247,23.776884,243.7,243.63,6.19764808]
[1731908404448,23.776884,243.7,243.65,10.2603]
[1731908405252,30.0,243.69,243.65,10.2603]
[1731908405960,30.0,243.69,243.65,16.45794808]
[1731908406658,30.0,243.69,243.65,20.56214808]
[1731908407560,0.12549,243.71,243.65,20.56214808]
[1731908407863,0.34465462,243.72,243.65,20.56214808]
[1731908409357,160.2,243.8,243.71,6.19764808]
[1731908409570,160.2,243.82,243.75,6.19764808]
[1731908409749,30.0,243.76,243.71,6.19764808]
[1731908410148,6.2913227,243.81,243.71,6.19764808]
[1731908410368,160.2,243.82,243.73,6.19764808]
[1731908410754,70.0,243.86,243.65,20.5212]
[1731908410755,0.09367462,243.8,243.65,20.5212]
[1731908410951,6.19764808,243.78,243.69,6.19764808]
[1731908411151,0.09367462,243.77,243.69,6.19764808]
[1731908411561,24.12153862,243.77,243.67,6.19764808]
[1731908411866,24.12153862,243.77,243.68,10.2591]
[1731908412066,24.12153862,243.77,243.69,6.19764808]
[1731908412644,23.99604862,243.74,243.69,6.19764808]
[1731908412974,23.99604862,243.74,243.7,4.1034]
[1731908414370,23.99604862,243.74,243.65,20.5212]
[1731908414570,23.99604862,243.74,243.66,20.0]
[1731908414763,23.99604862,243.74,243.68,6.19764808]
[1731908415674,23.99604862,243.74,243.69,14.3624]
[1731908415866,0.21916462,243.74,243.69,14.3624]
[1731908416264,20.0,243.8,243.69,14.3624]
[1731908416571,6.19764808,243.78,243.69,14.3624]
[1731908416769,0.09367462,243.77,243.69,14.3624]
[1731908417271,160.2,243.79,243.69,14.3624]
[1731908417459,160.2,243.79,243.69,20.56004808]
[1731908417654,160.2,243.79,243.69,14.3624]
[1731908417856,6.19764808,243.84,243.73,6.19764808]
[1731908418074,160.2,243.83,243.75,6.19764808]
[1731908418276,0.09367462,243.81,243.75,6.19764808]
[1731908419077,23.99604862,243.81,243.75,6.19764808]
[1731908419262,23.99604862,243.81,243.76,4.1023]
[1731908421264,0.09367462,243.77,243.75,10.2562]
[1731908421578,0.21916462,243.77,243.75,14.3587]
[1731908422556,0.21916462,243.77,243.75,10.2562]
[1731908426878,0.21916462,243.77,243.72,4.103]
[1731908426879,23.99604862,243.77,243.72,4.103]
[1731908427363,0.09367462,243.75,243.72,14.3606]
[1731908427568,0.21916462,243.75,243.72,14.3606]
[1731908428955,0.21916462,243.75,243.72,10.2576]
[1731908429583,23.99604862,243.75,243.72,10.2576]
[1731908429875,160.2,243.78,243.7,6.19764808]
[1731908430053,70.0,243.91,243.68,24.6224]
[1731908430054,166.39764808,243.85,243.68,24.6224]
[1731908430263,0.09367462,243.83,243.75,6.19764808]
[1731908430575,160.29367462,243.83,243.75,6.19764808]
[1731908431263,160.29367462,243.83,243.69,20.0]
[1731908431264,0.09367462,243.81,243.76,14.3582]
[1731908431455,0.09367462,243.79,243.71,16.45544808]
[1731908431664,24.12153862,243.77,243.71,10.2578]
[1731908435857,24.12153862,243.72,243.61,4.1049]
[1731908436059,23.99604862,243.66,243.61,4.1049]
[1731908436383,0.12549,243.7,243.59,10.263]
[1731908436384,0.21916462,243.62,243.59,10.263]
[1731908438757,0.21916462,243.62,243.53,20.5306]
[1731908438960,23.99604862,243.62,243.54,9.71111096]
[1731908439865,23.99604862,243.62,243.55,14.3707]
[1731908440973,23.99604862,243.6,243.55,14.3707]
[1731908442382,0.21916462,243.58,243.55,10.2648]
[1731908442581,0.21916462,243.56,243.55,10.2648]
[1731908443084,0.21916462,243.56,243.5,14.3736]
[1731908443307,0.21916462,243.54,243.5,14.3736]
[1731908443459,0.21916462,243.52,243.5,14.3736]
[1731908444071,0.21916462,243.53,243.5,14.3736]
[1731908444363,0.21916462,243.53,243.5,10.2669]
[1731908444982,0.12549,243.52,243.5,10.2669]
[1731908446864,23.99604862,243.51,243.5,10.2669]
[1731908447062,24.12153862,243.51,243.5,10.2669]
[1731908448083,24.12153862,243.51,243.42,10.2703]
[1731908448084,0.09367462,243.47,243.42,10.2703]
[1731908448278,0.12549,243.48,243.45,9.71111096]
[1731908448675,0.09367462,243.47,243.45,9.71111096]
[1731908448874,0.09367462,243.47,243.43,9.71111096]
[1731908449987,0.09367462,243.47,243.42,14.3784]
[1731908451364,0.09367462,243.47,243.42,10.2703]
[1731908451585,23.99604862,243.47,243.42,10.2703]
[1731908451789,0.21916462,243.45,243.42,10.2703]
[1731908451988,0.34465462,243.44,243.42,10.2703]
[1731908452288,24.12153862,243.44,243.39,4.1086]
[1731908452489,24.027864,243.44,243.39,13.81971096]
[1731908452790,24.027864,243.44,243.39,24.09121096]
[1731908455206,24.027864,243.44,243.41,9.71111096]
[1731908455874,160.2,243.45,243.34,34.9303]
[1731908455875,160.2,243.48,243.43,9.71111096]
[1731908456075,160.2,243.55,243.47,9.71111096]
[1731908456279,160.2,243.55,243.49,9.71111096]
[1731908456577,0.09367462,243.54,243.47,9.71111096]
[1731908456789,160.2,243.55,243.47,9.71111096]
[1731908457903,0.09367462,243.54,243.48,14.3748]
[1731908458102,0.12549,243.53,243.48,14.3748]
[1731908458599,0.25098,243.53,243.48,14.3748]
[1731908460178,0.25098,243.53,243.48,20.59365043]
[1731908460383,0.25098,243.53,243.48,6.21885043]
[1731908461083,0.25098,243.53,243.41,20.5407]
[1731908461084,21.77205043,243.61,243.46,20.0]
[1731908461403,6.21885043,243.59,243.49,6.21885043]
[1731908461578,0.09367462,243.56,243.49,6.21885043]
[1731908462402,0.09367462,243.56,243.45,15.1887]
[1731908462403,24.12153862,243.56,243.5,10.2669]
[1731908462903,0.12549,243.51,243.46,4.1074]
[1731908463093,0.25098,243.51,243.46,4.1074]
[1731908463305,30.25098,243.51,243.46,4.1074]
[1731908463607,0.12549,243.49,243.46,4.1074]
[1731908463810,0.12549,243.49,243.45,10.2689]
[1731908465096,0.25098,243.49,243.45,10.2689]
[1731908465295,0.12549,243.49,243.46,6.21885043]
[1731908465704,0.12549,243.49,243.45,10.2689]
[1731908465898,6.46983043,243.49,243.41,6.21885043]
[1731908466209,0.12549,243.47,243.43,6.21885043]
[1731908466385,0.12549,243.49,243.43,6.21885043]
[1731908466781,6.21885043,243.55,243.45,6.21885043]
[1731908466994,160.2,243.55,243.47,6.21885043]
[1731908467491,166.41885043,243.55,243.45,6.21885043]
[1731908467693,0.09367462,243.54,243.45,6.21885043]
[1731908467901,0.09367462,243.54,243.46,14.376]
[1731908468104,160.2,243.55,243.47,6.21885043]
[1731908468294,169.91617799,243.55,243.46,14.376]
[1731908468506,0.09367462,243.54,243.46,14.376]
[1731908469488,24.12153862,243.54,243.46,14.376]
[1731908469690,24.027864,243.5,243.46,10.2686]
[1731908470096,0.09367462,243.49,243.46,10.2686]
[1731908470301,0.25098,243.48,243.46,10.2686]
[1731908470502,0.25098,243.48,243.45,4.1075]
[1731908470503,0.25098,243.48,243.43,4.1078]
[1731908471491,0.25098,243.48,243.42,10.2703]
[1731908472304,0.25098,243.46,243.42,10.2703]
[1731908473113,10.06083261,243.44,243.35,9.71617799]
[1731908473342,0.25098,243.42,243.37,10.2723]
[1731908473529,0.12549,243.42,243.37,19.98847799]
[1731908473819,0.21916462,243.39,243.34,4.1093]
[1731908473996,0.25098,243.38,243.34,4.1093]
[1731908475117,0.25098,243.38,243.32,10.2743]
[1731908475295,0.09367462,243.37,243.32,10.2743]
[1731908475618,0.12549,243.36,243.32,10.2743]
[1731908475788,0.25098,243.36,243.32,10.2743]
[1731908476192,0.12549,243.37,243.32,10.2743]
[1731908476417,0.12549,243.38,243.32,10.2743]
[1731908476598,9.71617799,243.44,243.36,9.71617799]
[1731908477091,9.71617799,243.44,243.32,10.2743]
[1731908477092,9.71617799,243.44,243.34,9.71617799]
[1731908478099,24.027864,243.4,243.32,19.99047799]
[1731908478418,0.09367462,243.39,243.32,14.3841]
[1731908480002,24.12153862,243.37,243.32,14.3841]
[1731908481321,23.902374,243.37,243.32,24.10027799]
[1731908483504,0.12549,243.36,243.32,14.3841]
[1731908484201,0.12549,243.38,243.33,9.71617799]
[1731908486603,0.12549,243.38,243.34,14.383]
[1731908486806,0.34465462,243.39,243.34,14.383]
[1731908488345,0.34465462,243.39,243.34,10.2736]
[1731908488907,24.12153862,243.37,243.3,20.0]
[1731908489323,33.83771661,243.37,243.29,19.99157799]
[1731908489527,24.12153862,243.35,243.29,19.99157799]
[1731908490025,0.09367462,243.33,243.29,10.2754]
[1731908490323,24.12153862,243.33,243.29,10.2754]
[1731908490705,30.3514791,243.33,243.29,10.2754]
[1731908490902,46.7278791,243.33,243.29,10.2754]
[1731908491222,24.12153862,243.31,243.29,10.2754]
[1731908491408,184.32153862,243.31,243.29,10.2754]
[1731908491607,190.5514791,243.31,243.29,10.2754]
[1731908492209,24.12153862,243.29,243.27,4.1106]
[1731908493324,24.12153862,243.29,243.24,10.2776]
[1731908494225,24.12153862,243.29,243.24,24.1256114]
[1731908494814,0.34465462,243.29,243.24,14.3887]
[1731908495421,0.12549,243.29,243.24,24.1256114]
[1731908495607,0.12549,243.3,243.24,24.1256114]
[1731908495812,0.12549,243.3,243.26,9.7369114]
[1731908496620,0.12549,243.3,243.27,14.3872]
[1731908500110,0.09367462,243.31,243.27,14.3872]
[1731908501022,24.12153862,243.29,243.27,10.2766]
[1731908501709,160.2,243.37,243.28,9.7369114]
[1731908501909,160.2,243.36,243.28,9.7369114]
[1731908502324,0.09367462,243.35,243.28,9.7369114]
[1731908502914,0.12549,243.34,243.28,9.7369114]
[1731908503110,0.25098,243.34,243.29,14.3861]
[1731908503350,0.21916462,243.33,243.29,14.3861]
[1731908503516,0.12549,243.32,243.29,14.3861]
[1731908505936,0.25098,243.32,243.29,14.3861]
[1731908506931,0.12549,243.32,243.29,10.2758]
[1731908507140,0.09367462,243.33,243.29,10.2758]
[1731908509940,0.09367462,243.31,243.29,10.2758]
[1731908510126,0.34465462,243.31,243.29,10.2758]
[1731908511226,0.12549,243.31,243.29,10.2758]
[1731908512243,0.12549,243.31,243.25,6.23029664]
[1731908513319,0.34465462,243.33,243.25,6.23029664]
[1731908513525,0.12549,243.33,243.25,6.23029664]
[1731908514516,0.12549,243.33,243.26,14.3878]
[1731908516031,0.34465462,243.35,243.26,14.3878]
[1731908516224,6.57495126,243.35,243.24,20.0]
[1731908516426,166.77495126,243.35,243.24,20.0]
[1731908517135,176.5764,243.38,243.27,6.23029664]
[1731908517342,160.2,243.41,243.31,6.23029664]
[1731908517645,160.2,243.4,243.31,6.23029664]
[1731908518024,160.2,243.42,243.35,6.23029664]
[1731908518220,176.4885,243.44,243.37,6.23029664]
[1731908518430,6.23029664,243.47,243.37,6.23029664]
[1731908518628,6.23029664,243.45,243.29,0.2]
[1731908518841,22.7926,243.5,243.35,20.0]
[1731908518842,6.23029664,243.43,243.35,20.0]
[1731908519345,0.09367462,243.4,243.36,14.3819]
[1731908519640,6.23029664,243.39,243.36,14.3819]
[1731908519843,0.34465462,243.38,243.36,10.2728]
[1731908520053,0.12549,243.36,243.34,4.1094]
[1731908520236,0.12549,243.36,243.31,10.2746]
[1731908520237,0.25098,243.36,243.32,4.1097]
[1731908520545,0.25098,243.34,243.31,10.2746]
[1731908523749,160.45098,243.34,243.31,10.2746]
[1731908524253,0.25098,243.32,243.27,4.1106]
[1731908525260,0.09367462,243.31,243.27,14.3872]
[1731908525454,0.09367462,243.31,243.27,10.2766]
[1731908526455,0.25098,243.29,243.21,15.0117]
[1731908526656,0.25098,243.29,243.23,6.23029664]
[1731908528457,0.25098,243.29,243.25,6.23029664]
[1731908528642,0.12549,243.29,243.25,6.23029664]
[1731908528953,160.2,243.3,243.27,6.23029664]
[1731908529150,160.2,243.37,243.27,6.23029664]
[1731908529348,6.23029664,243.38,243.27,6.23029664]
[1731908529349,0.09367462,243.35,243.27,6.23029664]
[1731908529551,0.09367462,243.35,243.29,6.23029664]
[1731908529755,160.2,243.36,243.29,6.23029664]
[1731908530053,160.2,243.36,243.33,6.23029664]
[1731908530242,160.2,243.38,243.33,6.23029664]
[1731908530839,160.2,243.38,243.33,10.33979664]
[1731908531054,160.2,243.38,243.33,4.1095]
[1731908531357,0.25098,243.37,243.33,4.1095]
[1731908532159,0.09367462,243.36,243.32,10.2744]
[1731908533247,0.25098,243.36,243.32,10.2744]
[1731908533449,0.25098,243.36,243.29,4.1102]
[1731908534161,160.2,243.35,243.29,4.1102]
[1731908534373,160.2,243.35,243.29,14.386]
[1731908534543,164.3093,243.35,243.29,10.2758]
[1731908534859,6.23029664,243.34,243.27,4.1105]
[1731908535162,160.2,243.33,243.24,16.50789664]
[1731908535370,0.09367462,243.31,243.25,4.1108]
[1731908535539,0.12549,243.3,243.25,4.1108]
[1731908535869,0.25098,243.3,243.25,4.1108]
[1731908536252,0.25098,243.28,243.19,24.6712]
[1731908536455,0.25098,243.28,243.23,6.23029664]
[1731908536456,160.45098,243.28,243.23,6.23029664]
[1731908537462,0.25098,243.26,243.2,6.23029664]
[1731908537641,24.027864,243.24,243.19,14.392]
[1731908538157,0.09367462,243.23,243.12,6.3815]
[1731908538352,0.25098,243.21,243.13,14.3955]
[1731908538753,0.25098,243.19,243.13,20.62579664]
[1731908539358,0.25098,243.19,243.13,14.3955]
[1731908539561,0.25098,243.19,243.13,20.62579664]
[1731908539754,0.12549,243.17,243.13,20.62579664]
[1731908540262,160.32549,243.17,243.13,20.62579664]
[1731908541059,0.12549,243.15,243.13,10.2825]
[1731908541269,160.32549,243.15,243.09,4.1136]
[1731908541564,160.2,243.22,243.09,30.437]
[1731908541746,184.227864,243.21,243.14,6.23029664]
[1731908541949,24.027864,243.19,243.14,6.23029664]
[1731908542142,24.027864,243.19,243.15,4.1126]
[1731908542339,24.027864,243.19,243.09,16.0392]
[1731908542340,0.09367462,243.18,243.09,16.0392]
[1731908542577,0.12549,243.17,243.13,9.74449676]
[1731908542753,0.12549,243.17,243.1,14.3973]
[1731908542754,0.12549,243.17,243.15,9.74449676]
[1731908543648,0.12549,243.17,243.13,9.74449676]
[1731908544059,0.12549,243.17,243.14,4.1128]
[1731908544567,0.12549,243.17,243.13,9.74449676]
[1731908545068,0.12549,243.14,243.13,9.74449676]
[1731908545856,30.0,243.15,243.13,9.74449676]
[1731908546060,30.0,243.15,243.13,24.13989676]
[1731908546258,30.0,243.14,243.13,24.13989676]
[1731908548668,0.09367462,243.19,243.13,24.13989676]
[1731908548871,0.25098,243.18,243.13,20.02699676]
[1731908549047,0.12549,243.16,243.13,20.02699676]
[1731908549255,24.027864,243.16,243.11,9.74449676]
[1731908549457,0.12549,243.14,243.11,9.74449676]
[1731908550080,24.027864,243.12,243.07,9.74449676]
[1731908550245,160.32549,243.13,243.07,13.85839676]
[1731908550246,0.12549,243.1,243.07,13.85839676]
[1731908550951,0.09367462,243.1,243.07,9.74449676]
[1731908551162,23.902374,243.09,243.03,20.03109676]
[1731908551553,0.12549,243.08,243.03,10.2866]
[1731908552273,0.12549,243.05,243.02,9.74449676]
[1731908552477,0.12549,243.03,243.02,9.74449676]
[1731908553266,0.12549,243.03,243.0,4.1151]
[1731908553466,160.2,243.13,243.01,9.74449676]
[1731908553673,160.2,243.12,243.09,9.74449676]
[1731908553981,160.2,243.11,243.09,9.74449676]
[1731908554179,160.2,243.11,243.07,9.74449676]
[1731908554870,24.027864,243.1,243.07,9.74449676]
[1731908555077,160.2,243.13,243.07,24.14349676]
[1731908555468,160.2,243.13,243.07,14.399]
[1731908555962,164.313,243.13,243.07,10.2851]
[1731908556276,0.12549,243.11,243.07,10.2851]
[1731908556466,0.12549,243.11,243.03,9.74449676]
[1731908556666,30.0,243.09,243.03,9.74449676]
[1731908557081,0.12549,243.08,243.03,9.74449676]
[1731908557280,0.12549,243.08,243.01,14.4026]
[1731908557776,0.12549,243.06,243.01,14.4026]
[1731908557980,23.902374,243.06,243.01,14.4026]
[1731908558171,23.902374,243.06,243.01,10.2876]
[1731908558484,0.12549,243.05,242.98,13.85989676]
[1731908559271,13.85789676,243.11,243.01,9.74449676]
[1731908559480,160.2,243.1,243.01,9.74449676]
[1731908559662,0.09367462,243.08,243.01,9.74449676]
[1731908560184,30.0,243.05,243.01,9.74449676]
[1731908560392,30.0,243.05,243.01,13.85939676]
[1731908560899,0.12549,243.04,242.99,24.14809676]
[1731908561085,0.25098,243.04,242.99,10.2884]
[1731908561270,0.25098,243.04,242.99,14.4037]
[1731908561467,0.34465462,243.05,242.99,14.4037]
[1731908561667,0.12549,243.06,242.99,24.14819676]
[1731908562390,23.902374,243.06,242.99,24.14819676]
[1731908562559,0.21916462,243.05,242.99,20.03289676]
[1731908562759,23.902374,243.02,242.94,20.03479676]
[1731908562971,23.776884,243.0,242.94,20.03479676]
[1731908563166,23.776884,243.0,242.96,9.74449676]
[1731908563466,23.776884,243.0,242.94,10.2903]
[1731908563467,23.902374,242.99,242.94,10.2903]
[1731908564577,23.902374,242.99,242.94,14.4065]
[1731908565691,9.83817138,242.96,242.83,20.5902]
[1731908565866,160.32549,242.95,242.84,35.0023]
[1731908566067,160.32549,242.95,242.89,9.74449676]
[1731908566266,0.12549,242.95,242.89,6.24840963]
[1731908566491,30.0,242.98,242.91,6.24840963]
[1731908566667,30.0,242.95,242.91,6.24840963]
[1731908566872,23.776884,242.98,242.91,6.24840963]
[1731908567193,0.12549,242.97,242.91,6.24840963]
[1731908567872,0.12549,242.97,242.92,14.4079]
[1731908568288,0.12549,242.98,242.92,14.4079]
[1731908571371,0.12549,242.98,242.92,10.2914]
[1731908571595,30.0,242.94,242.92,10.2914]
[1731908572091,23.902374,242.96,242.92,10.2914]
[1731908572874,23.902374,242.99,242.92,10.2914]
[1731908573082,160.2,243.05,242.94,6.24840963]
[1731908573273,160.2,243.04,242.93,20.0]
[1731908573475,166.44840963,243.04,242.95,6.24840963]
[1731908573696,166.44840963,243.04,242.93,20.0]
[1731908573697,6.24840963,243.02,242.93,20.0]
[1731908573994,6.24840963,243.0,242.93,20.0]
[1731908574201,6.24840963,243.0,242.92,10.2914]
[1731908574398,6.24840963,242.98,242.92,10.2914]
[1731908574575,0.12549,242.96,242.92,10.2914]
[1731908575674,0.12549,242.98,242.92,10.2914]
[1731908578793,23.776884,243.01,242.93,26.24840963]
[1731908578976,0.12549,243.0,242.93,26.24840963]
[1731908580813,160.2,243.02,242.96,20.0]
[1731908581498,160.2,243.05,243.02,20.0]
[1731908581803,15.1922,243.18,243.02,20.0]
[1731908581804,160.2,243.04,243.02,20.0]
[1731908581976,160.2,243.04,243.01,20.0]
[1731908582673,160.2,243.04,243.03,26.24840963]
[1731908583176,21.44060963,243.18,243.04,20.0]
[1731908583478,160.2,243.17,243.11,6.24840963]
[1731908583698,153.95159037,243.08,243.04,0.1]
[1731908583999,15.1922,243.24,243.04,0.1]
[1731908584000,153.95159037,243.07,243.05,6.0078]
[1731908584184,153.95159037,243.07,243.06,26.24840963]
[1731908584388,153.95159037,243.07,243.06,29.74498969]
[1731908584684,153.95159037,243.07,243.06,33.85918969]
[1731908585475,153.95159037,243.07,243.06,33.95918969]
[1731908585684,153.95159037,243.07,243.06,33.85918969]
[1731908586192,153.95159037,243.07,243.06,13.85918969]
[1731908588200,23.902374,243.13,243.06,24.14468969]
[1731908588381,160.2,243.12,243.06,24.14468969]
[1731908588787,160.2,243.11,243.06,14.3997]
[1731908589098,160.2,243.11,243.06,24.14468969]
[1731908591803,160.2,243.11,243.08,9.74498969]
[1731908592501,160.2,243.11,243.09,14.3979]
[1731908592704,136.05711031,243.08,243.03,20.1]
[1731908592880,136.05711031,243.07,243.06,0.21916462]
[1731908594604,136.05711031,243.07,243.06,4.43336462]
[1731908595018,23.902374,243.22,243.08,0.1]
[1731908595189,160.2,243.21,243.14,9.74498969]
[1731908595915,160.2,243.21,243.16,9.74498969]
[1731908596484,160.2,243.21,243.17,14.3931]
[1731908597582,160.2,243.21,243.18,9.74498969]
[1731908597784,160.2,243.21,243.19,14.392]
[1731908598003,160.2,243.21,243.18,9.74498969]
[1731908598004,107.77892062,243.08,243.07,20.31916462]
[1731908598202,15.1922,243.24,243.07,29.74498969]
[1731908598203,0.1,243.18,243.07,29.74498969]
[1731908598414,160.2,243.17,243.12,9.74498969]
[1731908598588,160.2,243.17,243.13,20.0]